Cogmind - Beta 12 *** ADVENTURER MODE // 2023.05.24 @ 16:42:08 Player: Ms. V3-11A Result: Destroyed by DAS Turret with DAS Cannon Performance ------------- Evolutions (1) 500 Regions Visited (5) 1000 Robots Destroyed (45) 225 Value Destroyed (1051) 1051 Prototype IDs (7) 140 Alien Tech Used (0) 0 Bonus (26) 26 TOTAL SCORE: 2942 Bonus ------- Follower Combat Kills 66 Friendly Fire -40 Cogmind --------- Core Integrity 0/400 Matter 188/300 Energy 84/100 System Corruption 2% Temperature Cool (0) Movement Core (700) Ox13 Location -9/Exiles Parts ------- > --- POWER (1) -------- (None) > --- PROPULSION (2) --- (None) > --- UTILITY (4) ------ Improved Heat Sink High-capacity Storage Unit > --- WEAPON (2) ------- (None) > --- INVENTORY (20) --- Light Nuclear Core Light Nuclear Core Aluminum Leg Aluminum Leg High-capacity Storage Unit High-capacity Battery (250) High-capacity Matter Pod (200) Advanced Weight Redist. System Light Armor Plating Light Armor Plating Light Armor Plating Hacking Suite Hacking Suite Hacking Suite Hacking Suite Heavy Assault Rifle Heavy Flail Peak State ------------ > --- POWER ------------ Light Deuterium Engine > --- PROPULSION ------- Improved Aluminum Leg Improved Aluminum Leg > --- UTILITY ---------- Improved Heat Sink High-capacity Storage Unit Light Armor Plating Shield Generator > --- WEAPON ----------- Improved Medium Laser Minigun > --- INVENTORY -------- Light Nuclear Core Light Nuclear Core Light Nuclear Core Aluminum Leg Aluminum Leg High-capacity Storage Unit High-capacity Matter Pod Advanced Weight Redist. System Light Armor Plating Light Armor Plating Light Armor Plating Hacking Suite Hacking Suite Hacking Suite Hacking Suite Heavy Assault Rifle Heavy Assault Rifle Rocket Launcher Improved Grenade Launcher Heavy Flail [Rating: 24] Favorites ----------- Power Light Deuterium Engine Engine Light Deuterium Engine Power Core Light Nuclear Core Propulsion Aluminum Leg Leg Aluminum Leg Utility Improved Heat Sink Device Improved Heat Sink Storage Large Storage Unit Protection Light Armor Plating Weapon Minigun Energy Gun Improved Medium Laser Ballistic Gun Minigun Launcher Grenade Launcher Build | -11 -10 -10 -9 -9 -9 ------- Run | Jun Mat Min Mat Min Exi Slots Evolved 2 | . . . 2 . . Power . | . . . . . . Propulsion . | . . . . . . Utility 2 | . . . 2 . . Weapon . | . . . . . . Parts Attached 40 | . 10 5 19 2 4 Power 9 | . 4 1 4 . . Engine 5 | . 1 1 3 . . Core 4 | . 3 . 1 . . Reactor . | . . . . . . Propulsion 10 | . 2 . 6 2 . Treads . | . . . . . . Leg 10 | . 2 . 6 2 . Wheel . | . . . . . . Hover . | . . . . . . Flight . | . . . . . . Utility 8 | . 2 . 6 . . Device 2 | . 1 . 1 . . Storage 3 | . 1 . 2 . . Processor . | . . . . . . Hackware . | . . . . . . Protection 3 | . . . 3 . . Artifact . | . . . . . . Weapon 13 | . 2 4 3 . 4 Energy Gun 3 | . . 1 1 . 1 Energy Cannon . | . . . . . . Ballistic Gun 5 | . 1 2 1 . 1 Ballistic Cannon . | . . . . . . Launcher 5 | . 1 1 1 . 2 Special Weapon . | . . . . . . Impact Weapon . | . . . . . . Slashing Weapon . | . . . . . . Piercing Weapon . | . . . . . . Special Melee Weapon . | . . . . . . Unidentified Prototypes 1 | . . . 1 . . Parts Lost 11 | . . . 1 . 10 Power 1 | . . . . . 1 Propulsion 2 | . . . . . 2 Utility 3 | . . . 1 . 2 Weapon 5 | . . . . . 5 Highest Loss Streak 10 | . . . 1 . 10 To Critical Strikes . | . . . . . . Average Slot Usage (%) 96 | . 96 100 94 100 95 Engine 7 | . 1 1 10 11 10 Core 4 | . 11 12 . . . Leg 23 | . 27 28 22 22 20 Device 17 | . 12 14 17 22 20 Storage 12 | . 14 14 11 11 11 Protection 6 | . . . 9 11 9 Energy Gun 7 | . . . 11 11 10 Ballistic Gun 13 | . 27 14 10 11 10 Launcher 3 | . . 12 . . . Naked Turns . | . . . . . . Heaviest Build 57 | 14 30 32 57 57 57 Greatest Support 26 | 20 20 20 20 26 26 Greatest Overweight (x) 2 | . 1 1 2 2 2 Average Overweight (x) 1 | . . 1 1 2 2 Largest Inventory Capacity 20 | . 15 15 20 20 20 Average Capacity 16 | . 13 15 16 20 20 Most Carried 20 | . 7 14 20 20 20 Average Carried 14 | . 5 9 16 19 19 Final Capacity 20 | 8 15 15 20 20 20 Final Carried 20 | 6 7 14 19 20 17 Class Distribution -------------------- 71% | Mutant 28% | Scavenger-Mutant Dominant Class ---------------- Mutant | -10/Materials Mutant | -10/Mines Mutant | -9/Materials Mutant | -9/Mines Scavenger-Mutant | -9/Exiles Resources | -11 -10 -10 -9 -9 -9 ----------- Run | Jun Mat Min Mat Min Exi Matter Collected 1332 | 200 149 435 487 61 . Remotely . | . . . . . . Salvage Created 1421 | . 227 21 993 135 45 Parts 98 | . 17 . 68 12 1 Haulers Intercepted 1 | . . . 1 . . Recyclers Shooed 2 | . . . 2 . . Parts Field Recycled . | . . . . . . Retrieved Matter . | . . . . . . Parts Self-Destructed . | . . . . . . Prevented . | . . . . . . Kills | -11 -10 -10 -9 -9 -9 ------- Run | Jun Mat Min Mat Min Exi Combat Hostiles Destroyed 49 | . 7 5 27 4 6 Guns 31 | . 4 . 23 4 . AOE 18 | . 3 5 4 . 6 Classes Destroyed 11 | . 2 1 7 1 . Worker 1 | . . . 1 . . Builder 1 | . . . 1 . . Hauler 1 | . . . 1 . . Recycler 1 | . . . 1 . . Operator 2 | . . . 2 . . Watcher 1 | . . . 1 . . Swarmer 18 | . 3 . 14 1 . Grunt 12 | . 4 . 6 2 . Duelist 1 | . . . . 1 . Sentry 7 | . . . 7 . . Assembled 11 | . . 5 . . 6 Best Kill Streak 6 | . 3 2 5 3 6 Combat Bots Only 6 | . 3 2 4 3 6 Max Kills in Single Turn 4 | . 3 1 4 1 2 Gunslinging . | . . . . . . Exploded 3 | . 3 1 3 . 2 Melee . | . . . . . . Uniques/NPCs Destroyed . | . . . . . . Combat | -11 -10 -10 -9 -9 -9 -------- Run | Jun Mat Min Mat Min Exi Damage Taken 2029 | . 167 70 575 36 1181 Core 504 | . 53 12 67 . 372 Absorbed by Shields 147 | . . . 107 15 25 Regen/Repaired (Parts) 68 | . 68 . . . . Core Remaining (%) 87 | 100 . 74 . . . Volleys Fired 116 | . 15 8 71 5 17 Largest 2 | . 2 1 2 2 1 Hottest 88 | . 40 30 88 81 56 Shots Fired 206 | . 29 8 140 11 18 Gun 187 | . 28 . 138 11 10 Cannon . | . . . . . . Launcher 19 | . 1 8 2 . 8 Special . | . . . . . . Kinetic 109 | . 28 . 69 6 6 Thermal 78 | . . . 69 5 4 Explosive 19 | . 1 8 2 . 8 Electromagnetic . | . . . . . . Robot Hit Streak 17 | . 11 4 17 10 7 Robot Miss Streak 3 | . 1 1 3 1 2 Penetration Max . | . . . . . . Secondary Targets 5 | . 2 . 3 . . Max Gunslinging Chain 1 | . 1 . 1 . . Shots Hit Robots 158 | . 25 4 106 9 14 Core Hits 80 | . 12 8 42 5 13 Critical Kills . | . . . . . . Critical Parts Destroyed 1 | . . . 1 . . Critical Strikes 1 | . . . 1 . . Destroy 1 | . . . 1 . . Melee Attacks . | . . . . . . Impact . | . . . . . . Slashing . | . . . . . . Piercing . | . . . . . . Sneak Attacks . | . . . . . . Combat Hostiles . | . . . . . . Follow-up Attacks . | . . . . . . Damage Inflicted 3962 | . 432 224 2203 169 934 Guns 2523 | . 304 . 1930 169 120 Cannons . | . . . . . . Explosions 1439 | . 128 224 273 . 814 Melee . | . . . . . . Ramming . | . . . . . . Kinetic 1416 | . 304 . 944 117 51 Thermal 1107 | . . . 986 52 69 Explosive 1439 | . 128 224 273 . 814 Electromagnetic . | . . . . . . Impact . | . . . . . . Slashing . | . . . . . . Piercing . | . . . . . . Highest Corruption 2 | . 2 2 1 1 2 Average Corruption 1 | . 1 2 1 1 1 Corruption Purged . | . . . . . . Corruption Blocked . | . . . . . . Effects 37 | . 3 21 1 6 6 Message Errors 12 | . 2 7 1 . 2 Matter Fused 11 | . 1 7 . 2 1 Heat Flow Errors 1 | . . . . 1 . Energy Discharges 2 | . . 1 . 1 . Data Loss (minor) 4 | . . 2 . 1 1 Data Loss (major) 1 | . . 1 . . . Misfires 2 | . . . . 1 1 Alerts 4 | . . 3 . . 1 Overload Shots . | . . . . . . Overflow Damage 63 | . . 13 49 . 1 Projectiles . | . . . . . . Explosions 63 | . . 13 49 . 1 Melee . | . . . . . . Knockbacks . | . . . . . . Impact . | . . . . . . Kinetic . | . . . . . . Secondary . | . . . . . . Self-Inflicted Damage 111 | . . 57 . . 54 Shots 4 | . . 2 . . 2 Rammed . | . . . . . . Targets Rammed . | . . . . . . Kicked . | . . . . . . Crushed . | . . . . . . Highest Temperature 120 | . 8 . 56 120 . Average Temperature 18 | . 2 . 18 28 . Received Heat Transfer 337 | . 135 . 166 16 20 Siege Activations . | . . . . . . Robots Corrupted . | . . . . . . Combat Hostiles . | . . . . . . Parts Fried . | . . . . . . Impact Corruptions . | . . . . . . Robots Melted . | . . . . . . Combat Hostiles . | . . . . . . Parts Melted 5 | . . . 5 . . Heat Transferred 2331 | . . . 2072 111 148 Parts Sabotaged . | . . . . . . Parts Stolen . | . . . . . . Parts Stripped . | . . . . . . Power Chain Reactions . | . . . . . . Missiles Intercepted . | . . . . . . Alert | -11 -10 -10 -9 -9 -9 ------- Run | Jun Mat Min Mat Min Exi Peak Influence 284 | . 171 47 284 122 . Initial 26 | . . 26 . . . Average 61 | . 85 14 83 60 . Maximum Alert Level 1 | . . . 1 . . Low Security (%) 94 | . 100 100 88 100 . Level 1 5 | . . . 11 . . Level 2 . | . . . . . . Level 3 . | . . . . . . Level 4 . | . . . . . . Level 5 . | . . . . . . High Security . | . . . . . . Max Security . | . . . . . . Squads Dispatched 5 | . 1 1 3 . . Investigation 3 | . 1 1 1 . . Extermination . | . . . . . . Reinforcement 2 | . . . 2 . . Assault . | . . . . . . Garrison . | . . . . . . Intercept . | . . . . . . Searches Triggered . | . . . . . . Construction Impeded . | . . . . . . Haulers Reinforced . | . . . . . . Active Scanning Responses . | . . . . . . Cargo Convoy Interrupts . | . . . . . . Stealth | -11 -10 -10 -9 -9 -9 --------- Run | Jun Mat Min Mat Min Exi Distress Signals 5 | . 1 . 4 . . Communications Jammed . | . . . . . . Distress Signals . | . . . . . . Times Spotted 101 | . 14 4 44 8 31 Peak Tracking Total 11 | . 5 1 5 3 11 Tactical Retreats 5 | . . 1 1 . 3 Traps | -11 -10 -10 -9 -9 -9 ------- Run | Jun Mat Min Mat Min Exi Traps Triggered 7 | . 4 . 3 . . Indirectly . | . . . . . . Trap Hack Attempts . | . . . . . . Triggered . | . . . . . . Disarmed . | . . . . . . Reprogrammed . | . . . . . . Reused . | . . . . . . Traps Extracted . | . . . . . . Installed 5 | . . 5 . . . Triggered . | . . . . . . Most Traps Carried 5 | . . 5 . . . Machines | -11 -10 -10 -9 -9 -9 ---------- Run | Jun Mat Min Mat Min Exi Machines Disabled 4 | . . . . . 4 Max in Single Turn 2 | . . . . . 2 Machines Repaired . | . . . . . . Machines Sabotaged . | . . . . . . Overloaded Fab Kills . | . . . . . . Hacking | -11 -10 -10 -9 -9 -9 --------- Run | Jun Mat Min Mat Min Exi Machines Accessed 16 | . 7 1 7 . 1 Terminals 10 | . 6 . 4 . . Fabricators . | . . . . . . Repair Stations 2 | . 1 . 1 . . Recycling Units . | . . . . . . Scanalyzers 2 | . . . 2 . . Garrison Access . | . . . . . . Total Hacks 77 | . 36 1 39 . 1 Successful 58 | . 25 1 31 . 1 Failed 19 | . 11 . 8 . . Catastrophic . | . . . . . . Database Lockouts . | . . . . . . Manual 30 | . 18 . 12 . . Terminals 53 | . 30 . 23 . . Fabricators . | . . . . . . Repair Stations 8 | . 6 . 2 . . Recycling Units . | . . . . . . Scanalyzers 14 | . . . 14 . . Garrison Access . | . . . . . . Terminal Hacks 30 | . 16 1 12 . 1 Record 1 | . . . . . 1 Part Schematic 3 | . 3 . . . . Robot Analysis 7 | . 4 . 3 . . Prototype ID Bank 4 | . 2 . 2 . . Open Door 1 | . . 1 . . . Branch Access Points 1 | . 1 . . . . Emergency Access Points 1 | . . . 1 . . Terminal Index 1 | . 1 . . . . Repair Station Index 1 | . 1 . . . . Unreport Threat 1 | . . . 1 . . Locate Traps 1 | . . . 1 . . Transport Status 2 | . . . 2 . . Recall Investigation 1 | . 1 . . . . Hauler Manifests 2 | . 1 . 1 . . Zone Layout 3 | . 2 . 1 . . Fabricator Hacks . | . . . . . . Repair Station Hacks 8 | . 6 . 2 . . Scan Component 4 | . 3 . 1 . . Repair 4 | . 3 . 1 . . Recycling Unit Hacks . | . . . . . . Scanalyzer 14 | . . . 14 . . Insert Component 6 | . . . 6 . . Analyze 8 | . . . 8 . . Garrison Access Hacks . | . . . . . . Unauthorized Hacks 6 | . 3 . 3 . . Terminals 6 | . 3 . 3 . . Botnet 6 | . 3 . 3 . . Fabricators . | . . . . . . Repair Stations . | . . . . . . Recycling Units . | . . . . . . Scanalyzers . | . . . . . . Garrison Access . | . . . . . . Data Cores Recovered . | . . . . . . Used . | . . . . . . Hacking Detections 13 | . 7 . 6 . . Full Trace Events 1 | . 1 . . . . Feedback Events 1 | . 1 . . . . Corruption 1 | . 1 . . . . Feedback Blocked . | . . . . . . Robot Schematics Acquired . | . . . . . . Robots Built . | . . . . . . Authchips . | . . . . . . Time . | . . . . . . Total Robot Build Rating . | . . . . . . Part Schematics Acquired 9 | . 3 . 6 . . Parts Built . | . . . . . . Authchips . | . . . . . . Time . | . . . . . . Total Part Build Rating . | . . . . . . Parts Repaired 4 | . 3 . 1 . . Time 155 | . 102 . 53 . . Parts Recycled . | . . . . . . Recycled Matter . | . . . . . . Retrieved Matter . | . . . . . . Retrieved Components . | . . . . . . Parts Scanalyzed 6 | . . . 6 . . Part Schematics Acquired 6 | . . . 6 . . Parts Damaged 1 | . . . 1 . . Bothacking | -11 -10 -10 -9 -9 -9 ------------ Run | Jun Mat Min Mat Min Exi Used RIF Installer . | . . . . . . Robots Hacked . | . . . . . . Non-combat . | . . . . . . Combat . | . . . . . . Robot Hacks Applied . | . . . . . . Relay Couplers Released . | . . . . . . Fabnet Peak Effective % . | . . . . . . Robots Rewired . | . . . . . . Allies Hacked . | . . . . . . Hacks Repelled . | . . . . . . Allies | -11 -10 -10 -9 -9 -9 -------- Run | Jun Mat Min Mat Min Exi Total Allies 1 | . . . . 1 . Largest Group 1 | . . . . 1 . Highest-Rated Group 31 | . . . . 31 . Highest-Rated Ally 31 | . . . . 31 . Total Orders . | . . . . . . Ally Attacks 12 | . . . . 12 . Total Damage 192 | . . . . 192 . Kills 4 | . . . . 4 . Allies Corrupted . | . . . . . . Allies Melted . | . . . . . . Intel | -11 -10 -10 -9 -9 -9 ------- Run | Jun Mat Min Mat Min Exi Robot Analysis Total 7 | . 4 . 3 . . Derelict Logs Recovered 1 | . . 1 . . . Drone Launches . | . . . . . . Drone Recoveries . | . . . . . . Exploration | -11 -10 -10 -9 -9 -9 ------------- Run | Jun Mat Min Mat Min Exi Turns Passed 5543 | . 626 1352 2330 829 406 Spaces Moved 2089 | 1 281 406 969 291 141 Core . | . . . . . . Treads . | . . . . . . Legs 2089 | 1 281 406 969 291 141 Wheels . | . . . . . . Hover . | . . . . . . Flight . | . . . . . . Fastest Speed 120 | 120 120 190 190 260 260 Average Speed 208 | 120 160 190 206 260 260 Slowest Speed 260 | 120 190 190 260 260 260 Overloaded Moves . | . . . . . . Propulsion Burnouts . | . . . . . . Robots Hopped . | . . . . . . Cave-ins Triggered . | . . . . . . Exploration Rate (%) 52 | 2 45 69 87 62 49 Regions Visited 5 Branch Regions 3 Pre-discovered Areas 1 | . . . . . 1 Known Exits Taken 2 | . 1 . 1 . . Unknown Exits Taken 3 | 1 . 1 . 1 . Scrap Searched 3 | . . 1 . 2 . Spaces Dug . | . . . . . . Terrain Destroyed 88 | . 9 45 9 . 25 Melee . | . . . . . . Projectile . | . . . . . . AOE 88 | . 9 45 9 . 25 Terrain Rammed . | . . . . . . Walls Destroyed . | . . . . . . Machines Disabled . | . . . . . . Actions | -11 -10 -10 -9 -9 -9 --------- Run | Jun Mat Min Mat Min Exi Total 3106 | . 429 981 1176 357 163 Wait 779 | . 107 536 80 55 1 Move 2084 | . 280 405 968 290 141 Hop . | . . . . . . Pick Up 41 | . 8 14 17 2 . Fast Attach 10 | . 4 . 6 . . Attach 6 | . 1 1 1 . 3 Detach . | . . . . . . Swap 24 | . 5 4 12 2 1 Drop 41 | . 9 8 21 3 . Fire 116 | . 15 8 71 5 17 Melee . | . . . . . . Ram . | . . . . . . Kick . | . . . . . . Crush . | . . . . . . Escape Stasis . | . . . . . . Rewire . | . . . . . . Trap 5 | . . 5 . . . Miscellaneous . | . . . . . . Route ------- -11/Junkyard -10/Materials (discovered 3 exits: *Mat / *Min x2) -10/Mines -9/Materials (discovered 7 exits: *Mat x3 / *Min x2 / *Sto x2) -9/Mines (discovered 3 exits: *Mat x2 / *Exi) -9/Exiles (discovered 1 exit: [*Min]) History --------- Turn | Location | Event 1 | -11/Junkyard | Discovered new exit (range 0) 1 | -11/Junkyard | Entered Materials 222 | -10/Materials | Discovered new exit (range 15) 255 | -10/Materials | Identified exit to Mines 317 | -10/Materials | Build established: Mutant 471 | -10/Materials | Repaired Lgt. Nuclear Core 510 | -10/Materials | Repaired Lgt. Nuclear Core 537 | -10/Materials | Repaired Aluminum Leg 627 | -10/Materials | Entered Mines 644 | -10/Mines | Assembled infested the area 1329 | -10/Mines | Learned 8 Materials zone layouts 1358 | -10/Mines | Found a hidden stash of uninstalled traps 1721 | -10/Mines | Discovered new exit (range 9) 1792 | -10/Mines | Met a Derelict shopkeep closing up shop 1979 | -10/Mines | Entered Materials 1979 | -9/Materials | Evolved 2 slots: Utility x2 1980 | -9/Materials | Identified exit to Storage 1980 | -9/Materials | Identified exit to Materials 1980 | -9/Materials | Identified exit to Mines 2516 | -9/Materials | Build established: Scavenger-Mutant 2849 | -9/Materials | Discovered exit to Materials (range 5) 2979 | -9/Materials | Discovered exit to Mines (range 15) 3322 | -9/Materials | Discovered exit to Materials (range 11) 3346 | -9/Materials | Build established: Mutant 3841 | -9/Materials | Repaired Broken Imp. Grenade Launcher 3899 | -9/Materials | Discovered exit to Storage (range 15) 4309 | -9/Materials | Entered Mines 4367 | -9/Mines | Received a Mining Laser from a helpful Derelict 4500 | -9/Mines | Discovered exit to Materials (range 8) 4865 | -9/Mines | Discovered exit to Materials (range 9) 5095 | -9/Mines | Build established: Scavenger-Mutant 5128 | -9/Mines | Deemed a non-threat by the Exiles lab entrance 5128 | -9/Mines | Discovered new exit (range 5) 5138 | -9/Mines | Entered Exiles 5177 | -9/Exiles | Discovered new exit (range 15) 5261 | -9/Exiles | Met 8R-AWN 5297 | -9/Exiles | Met EX-HEX 5409 | -9/Exiles | Met EX-DEC 5419 | -9/Exiles | Learned location of Zion (-7) 5461 | -9/Exiles | Met EX-BIN 5503 | -9/Exiles | Attacked by the Exiles 5529 | -9/Exiles | Core integrity fell below 50% 5539 | -9/Exiles | Core integrity fell below 20% 5544 | -9/Exiles | Destroyed by DAS Turret with DAS Cannon Last Messages --------------- 05515_ as-71683 destroyed. 05515_ A-02 Transporter destroyed. 05516_ EX-BIN: "I just want to science!" 05517_ The unstable cave ceiling collapses. 05517_ Ion Engine crushed. 05517_ Imp. Grenade Launcher destroyed. 05522_ Imp. Aluminum Leg destroyed. 05524_ Knocked back. 05526_ Lgt. Deuterium Engine destroyed. 05526_ Hvy. Assault Rifle destroyed. 05526_ Knocked back. 05529_ as-56317 destroyed. 05531_ as-12759 destroyed. 05531_ as-35068 destroyed. 05532_ Knocked back. 05533_ Destroyed Asb. F-torch. 05534_ Rocket Launcher destroyed. 05540_ VU&/SISYUUMPNSCZZ2PA 05540_ A-02 Transporter destroyed. 05544_ Imp. Medium Laser destroyed. Map ----- +----------------------------------------------------+ | ?????????????????"" """#????????? ?????? | | ????????????????#"" #????????# ??????? | | ????????????????#"" #????????#" "???????? | | ????????????????#"" "#????????#" ????????? | | ????????????????? ""?????????#" "?????????? | | ??????????????????" "?????????##" #??????????? | | ??????????????????# #????????##"" #??????????? | | ????????????????### ###?######"" #??????????? | | ???? """#####X# #"###""""""" ##?????????? | | ??? """""" " "" ##???###### | | ??? "" """ " #####""""" | | ???# " " " """ | | ????## "" | | ?????### " | | ???????## | | ????????## | | ?????????##" | | ??????????#""" """""" | | ?????????# ######""" | | ?????????# ""##????#####""" | | ?????????# """##?????????##""" | | ????????# "##???#???????#"""" | | ?????????"" "##?# #####???#"" | | ????????#" # #??#"""" | | ????????#" % % %a% #""" | | ?????????"" t % @ ! z | | ?????????#" g | | ?????????#" % % % | | ?????????## " | | ??????????#" "" | | ??????????#"""" "" " " ""# | | ??????????#"" " ### ## ###""" """# | | ???????????" "" "###??? #????###""""#? | | ???????????""" """#?????????????#####?? | | ???????????# ""##???????????????????? | | ????????????"" """##????????????????????? | | ?????????????""" #??????????????????????? | | ???????????????""" ##??????????????????????? | | ????????????????? ????????????????????????? | | ??????????????????## #????????????????????????? | | ????????????????????# ?????????????????????????? | | ?????????????????????????????????????????????????? | | ?????????????????????????????????????????????????? | | ?????????????????????????????????????????????????? | | ?????????????????????????????????????????????????? | | ?????????????????????????????????????????????????? | | ?????????????????????????????????????????????????? | | ?????????????????????????????????????????????????? | | ?????????????????????????????????????????????????? | | ?????????????????????????????????????????????????? | +----------------------------------------------------+ Best States ------------- Heat Dissipation 42 Energy Generation 14 Energy Capacity 160 Matter Stores 300 Matter Capacity 300 Sight Range 16 Terrain Scan Density 10 Armor Coverage 150 Resistance: KI 20 Resistance: TH 20 Resistance: EX 20 Resistance: EM 20 Resistance: I 20 Resistance: S 20 Resistance: P 20 Evasion (%) 55 Offensive Hacking 10 Item Schematics ----------------- Hcp. Storage Unit | -10/Materials | Hacked Hcp. Matter Pod | -10/Materials | Hacked Hcp. Battery | -10/Materials | Hacked Lgt. Nuclear Core | -9/Materials | Scanalyzed Lgt. Deuterium Engine | -9/Materials | Scanalyzed Adv. Weight Redist. System | -9/Materials | Scanalyzed Hrd. Light Armor Plating | -9/Materials | Scanalyzed Imp. Grenade Launcher | -9/Materials | Scanalyzed Lgt. Armor Plating | -9/Materials | Scanalyzed Robot Schematics ------------------ None Fabricated ------------ Nothing Alien Tech Used ----------------- None Achievements -------------- None Challenges ------------ None Game ------ Seed TransdimensionalChainCoupler Manual? 0 Play Time 00:39:44 Cumulative 171.9 hours Start 2023.05.24 @ 15:54:21 End 2023.05.24 @ 16:42:08 Sessions 1 Manual Loads 0 Difficulty Adventurer Special Mode None Game No. 139 Rogue 63 Adventurer 50 Explorer 26 Win Type - Total 1 Types 1/0/0/0/0/0/0/0/0 Lore% 54 Gallery% 66 Achievement% 67 Wizard Run 0 Options --------- ASCII 0 Keyboard 0 Movement Mouse Keybinds 0 Fullscreen 0 Font 16/Smallcaps Map View 76x50 Tactical HUD 1 Map Filters NONE Filters BRIGHTNESS(115)|SATURATION(100)|LOW_CONTRAST(0,16,30) Steam 1 RUN: d51a30ca-b9bf-4ecc-9f2f-1377ed53fe1b